Workbook

Sheet CF_D
B2: Konzern-Kapitalflussrechnung (IFRS)
B3: vom 1. Oktober 2018 bis 30. September 2019
C4: 2018/19 1.10.18 bis 30.9.19 | D4: 2017/18 1.10.17 bis 30.9.18
C5: Tsd. € | D5: Tsd. €
B6: Cashflow aus der gewöhnlichen Geschäftstätigkeit:
B7: Konzernergebnis | C7: 160579 | D7: =126310-233+153 -> 126230
B8: Anpassung zur Überleitung des Konzernergebnisses zur Nettoveränderung der liquiden Mittel aus laufender Geschäftstätigkeit:
B9: Ertragsteueraufwand | C9: 69279 | D9: =53106-153 -> 52953
B10: Zinserträge / Zinsaufwendungen | C10: 6409 | D10: 1680
B11: Ergebnis aus sonstigen Beteiligungen | C11: -34 | D11: -34
B12: Ergebnis aus der Veräußerung der rechtlichen Einheit/ des hydrophilen IOL-Geschäftes Aaren Scientific Inc. | C12: 0 | D12: -2527
B13: Abschreibungen | C13: 48370 | D13: 31282
B14: Gewinne/Verluste aus Abgang/Abwertung von Anlagevermögen | C14: 719 | D14: 2454
B15: Erhaltene Dividenden | C15: 34 | D15: 34
B16: Erhaltene Zinsen | C16: 1774 | D16: =933+13 -> 946
B17: Gezahlte Zinsen | C17: -1903 | D17: =-1952+13-1 -> -1940
B18: Erstattete Ertragsteuern | C18: 6003 | D18: 2583
B19: Gezahlte Ertragsteuern | C19: -71073 | D19: -50947
B20: Veränderungen des Working Capitals:
B21: Forderungen aus Lieferungen und Leistungen | C21: -20607 | D21: =535+51-699 -> -113
B22: Vorräte | C22: -11349 | D22: -11758
B23: Sonstige Vermögenswerte | C23: 6542 | D23: =5816+699 -> 6515
B24: Verbindlichkeiten aus Lieferungen und Leistungen | C24: 14695 | D24: =862-51+109+1 -> 921
B25: Rückstellungen und finanzielle Verbindlichkeiten | C25: 14564 | D25: =22419-0-26 -> 22393
B26: Sonstige Verbindlichkeiten | C26: -4368 | D26: 6535
B27: Gesamte Anpassungen | C27: 59055 | D27: =SUM(D9:D26) -> 60977
B28: Netto-Kapitalzufluss/(-abfluss) aus der gewöhnlichen Geschäftstätigkeit | C28: 219634 | D28: =+D7+D27 -> 187207
B29: Cashflow aus der Investitionstätigkeit:
B30: Investitionen in Sachanlagen | C30: -20348 | D30: =-16426-109 -> -16535
B31: Investitionen in sonstige immaterielle Vermögenswerte | C31: -26363 | D31: -18221
B32: Erlöse aus dem Verkauf von Anlagevermögen | C32: 887 | D32: 467
B33: Einzahlungen aus sonstigen Ausleihungen | C33: 149 | D33: 0
B34: Auszahlungen für sonstige Ausleihungen | C34: -177 | D34: 0
B35: Investitionen/ Devestitionen in Wertpapiere | C35: -4857 | D35: 3220
B36: Erwerb von Anteilen an verbundenen nicht-konsolidierten Unternehmen | C36: 1196 | D36: 0
B37: Erwerb von Anteilen an verbundenen konsolidierten Unternehmen abzgl. erhaltener Finanzmittel | C37: -96333 | D37: -353
B38: Einzahlungen aus der Veräußerung der rechtlichen Einheit/ des hydrophilen IOL-Geschäftes Aaren Scientific Inc. | C38: 0 | D38: 2548
B39: Netto-Kapitalzufluss/(-abfluss) aus der Investitionstätigkeit | C39: =SUM(C30:C38) -> -145846 | D39: =SUM(D30:D38) -> -28874
B40: Cashflow aus der Finanzierungsstätigkeit:
B41: Aufnahme/(Rückzahlung) der kurzfristigen Kredite | C41: -103 | D41: -102
B42: Aufnahme/(Rückzahlung) der langfristigen Kredite | C42: 0 | D42: -482
B43: (Zunahme)/Abnahme der Forderungen aus Finanzausgleich | C43: 11619 | D43: -33663
B44: Zunahme/(Abnahme) der Verbindlichkeiten aus Finanzausgleich | C44: -1672 | D44: -65315
B45: Zunahme/(Abnahme) der Verbindlichkeiten aus Finanzierungsleasing | C45: -13663 | D45: -2932
B46: Dividendenzahlung an die Aktionäre der Carl Zeiss Meditec AG | C46: -49192 | D46: -49192
B47: Dividendenzahlung an nicht-beherrschende Gesellschafter | C47: -5626 | D47: -5551
B48: Netto-Kapitalzufluss/(-abfluss) aus der Finanzierungsstätigkeit | C48: =SUM(C41:C47) -> -58637 | D48: =SUM(D41:D47) -> -157237
B49: Einfluss von Wechselkursänderungen auf Zahlungsmittel und Zahlungsmitteläquivalente | C49: 810 | D49: -345
B50: Einfluss von Konsolidierungskreisänderungen auf Zahlungsmittel und Zahlungsmitteläquivalente | C50: 0 | D50: =1680+322 -> 2002
B51: Zunahme/(Abnahme) der Zahlungsmittel und Zahlungsmitteläquivalente | C51: =+C28+C39+C48+C49+C50 -> 15961 | D51: =+D28+D39+D48+D49+D50 -> 2753
B52: Zahlungsmittel und Zahlungsmitteläquivalente am Beginn des Berichtszeitraumes | C52: 6678 | D52: 3925
B53: Zahlungsmittel und Zahlungsmitteläquivalente am Ende des Berichtszeitraumes | C53: =+C51+C52 -> 22639 | D53: =+D51+D52 -> 6678
B54: Der nachfolgende Konzernanhang ist integraler Bestandteil des geprüften Konzernabschlusses.
